fUSD/lending_fUSD_20260320
["ID","MTS","AMOUNT","RATE_DAILY","PERIOD"]
[408621405,1773982233098,-500.0,0.0001259,2]
[408621406,1773982233108,-500.0,0.0001259,2]
[408621407,1773982233117,-500.0,0.0001259,2]
[408621408,1773982233128,-500.0,0.0001259,2]
[408621409,1773982233138,-500.0,0.0001259,2]
[408621410,1773982233153,-500.0,0.0001259,2]
[408621411,1773982233163,-500.0,0.0001259,2]
[408621412,1773982233173,-591.62626565,0.00012592,2]
[408621413,1773982233183,-9552.16786547,0.00012592,2]
[408621414,1773982233196,-166.42465256,0.00012592,2]
[408621415,1773982233206,-524.58,0.00012597,2]
[408621416,1773982233216,-5694.8171537,0.000126,2]
[408621417,1773982233227,-151.0,0.000126,2]
[408621418,1773982233237,-151.0,0.000126,2]
[408621419,1773982233247,-3025.35489793,0.00012625,2]
[408621420,1773982233257,-383.0,0.00012637,2]
[408621421,1773982233267,-151.0,0.00012641,2]
[408621422,1773982233277,-151.0,0.00012641,2]
[408621423,1773982233287,-151.0,0.00012641,2]
[408621424,1773982233297,-151.0,0.00012641,2]
[408621425,1773982233307,-151.0,0.00012641,2]
[408621426,1773982233317,-151.0,0.00012641,2]
[408621427,1773982233327,-151.0,0.00012641,2]
[408621428,1773982233337,-151.0,0.00012641,2]
[408621429,1773982233347,-9905.5980765,0.00012647,2]
[408621430,1773982233357,-10272.10520533,0.00012702,2]
[408621431,1773982233367,-370.81082133,0.00012724,2]
[408621432,1773982233377,-1299.0,0.00012745,2]
[408621433,1773982233387,-10652.17309792,0.00012757,2]
[408621434,1773982233397,-1299.0,0.00012762,2]
[408621435,1773982233407,-196.9328,0.0001277,2]
[408621436,1773982233417,-196.9328,0.0001277,2]
[408621437,1773982233427,-1258.01051236,0.00012798,2]
[408621438,1773982233437,-197.84394058,0.00012812,2]
[408621439,1773982233446,-151.0,0.00012816,2]
[408621440,1773982233456,-151.0,0.00012844,2]
[408621441,1773982233465,-385.0,0.00012864,2]
[408621442,1773982233475,-524.58,0.00012871,2]
[408621443,1773982233485,-151.0,0.000129,2]
[408621444,1773982233495,-151.0,0.000129,2]
[408621445,1773982233505,-400.0,0.000129,4]
[408621446,1773982233515,-288.89,0.00012902,2]
[408621447,1773982233525,-759.0,0.00012913,2]
[408621448,1773982233534,-778.0,0.00012933,5]
[408621449,1773982233543,-1299.0,0.00012947,2]
[408621450,1773982233553,-1299.0,0.00012952,2]
[408621451,1773982233564,-385.0,0.00012958,2]
[408621452,1773982233574,-501.20346815,0.00012973,2]
[408621453,1773982233584,-502.2611496,0.00012973,2]
[408621454,1773982233594,-502.51043512,0.00012973,2]
[408621455,1773982233604,-500.25608799,0.00012973,2]
[408621456,1773982233615,-500.0,0.00012973,2]
[408621457,1773982233625,-500.56411595,0.00012973,2]
[408621458,1773982233635,-500.0,0.00012973,2]
[408621459,1773982233652,-166.66,0.00012986,2]
[408621460,1773982233662,-1299.0,0.00012992,2]
[408621461,1773982233671,-59771.0,0.00013,3]
[408621462,1773982233681,-166.19,0.00013,2]
[408621463,1773982233691,-311995.52879904,0.00013,7]
[408621464,1773982233702,-151.0,0.00013,2]
[408621465,1773982233712,-151.0,0.00013,2]
[408621466,1773982233721,-151.0,0.00013,2]
[408621467,1773982233731,-151.0,0.00013,2]
[408621468,1773982233740,-151.0,0.00013,2]
[408621469,1773982233750,-279.325845,0.00013,2]
[408621470,1773982233760,-151.0,0.00013,2]
[408621471,1773982233770,-151.0,0.00013,2]
[408621472,1773982233779,-151.0,0.00013,2]
[408621473,1773982233789,-151.0,0.00013,2]
[408621474,1773982233799,-151.0,0.00013,2]
[408621475,1773982233808,-211.574937,0.00013,2]
[408621476,1773982233818,-151.0,0.00013,2]
[408621477,1773982233827,-151.0,0.00013,2]
[408621478,1773982233837,-151.0,0.00013,2]
[408621479,1773982233846,-151.0,0.00013,2]
[408621480,1773982233855,-178.474721,0.00013,2]
[408621481,1773982233865,-472.788357,0.00013034,2]
[408621482,1773982233875,-178.905304,0.00013034,2]
[408621483,1773982233885,-483.149606,0.00013034,2]
[408621484,1773982233895,-1299.0,0.00013051,2]
[408621485,1773982233904,-166.67,0.00013125,2]
[408621486,1773982233914,-1800.0,0.00013136,2]
[408621487,1773982233924,-700.0,0.00013136,2]
[408621488,1773982233934,-2000.0,0.00013137,2]
[408621489,1773982233943,-524.58,0.00013145,2]
[408621490,1773982233953,-979.16666667,0.00013147,2]
[408621491,1773982233962,-160.0,0.00013151,2]
[408621492,1773982233972,-2616.575,0.00013157,2]
[408621493,1773982233981,-184.113,0.00013159,2]
[408621494,1773982233991,-255.0,0.00013174,2]
[408621495,1773982234001,-1299.0,0.00013177,2]
[408621496,1773982234010,-2706.63434673,0.00013198,2]
[408621497,1773982234020,-1299.0,0.00013207,2]
[408621498,1773982234030,-152.0,0.00013289,3]
[408621499,1773982234040,-132156.01053283,0.000133,2]
[408621500,1773982234050,-152.79498,0.000133,2]
[408621501,1773982234059,-151.0,0.000133,2]
[408621502,1773982234070,-502.0,0.000133,2]
[408621503,1773982234083,-151.0,0.000133,2]
[408621504,1773982234101,-151.0,0.000133,2]
[408621505,1773982234111,-151.0,0.000133,2]
[408621506,1773982234121,-151.0,0.000133,2]
[408621507,1773982234131,-151.0,0.000133,2]
[408621508,1773982234142,-385.0,0.00013324,2]
[408621509,1773982234156,-385.0,0.00013331,2]
[408621510,1773982234167,-1685.67661102,0.00013334,2]
[408621511,1773982234176,-897.0,0.00013335,2]
[408621512,1773982234186,-1299.0,0.00013347,2]
[408621513,1773982234197,-1300.0,0.0001341,2]
[408621514,1773982234208,-524.58,0.00013419,2]
[408621515,1773982234218,-1303.39991196,0.0001342,30]
[408621516,1773982234229,-3240.0,0.00013425,2]
[408621517,1773982234238,-1299.0,0.00013435,2]
[408621518,1773982234248,-897.0,0.00013459,2]
[408621519,1773982234257,-385.0,0.00013486,2]
[408621520,1773982234267,-501.2933317,0.000135,2]
[408621521,1773982234276,-522.0,0.00013514,2]
[408621522,1773982234285,-1299.0,0.0001355,2]
[408621523,1773982234295,-3526.892,0.00013578,2]
[408621524,1773982234305,-621.0,0.00013578,2]
[408621525,1773982234315,-1047.379,0.00013578,2]
[408621526,1773982234324,-1346.623,0.00013578,2]
[408621527,1773982234333,-1265.11,0.00013578,2]
[408621528,1773982234343,-924.0,0.00013578,2]
[408621529,1773982234353,-1215.0,0.00013578,2]
[408621530,1773982234362,-415.0,0.00013578,2]
[408621531,1773982234372,-6006.0,0.00013578,2]
[408621532,1773982234382,-718.42857654,0.00013599,2]
[408621533,1773982234391,-1280.0,0.00013615,2]
[408621534,1773982234402,-917.0,0.00013616,5]
[408621535,1773982234412,-524.58,0.00013693,2]
[408621536,1773982234421,-500.0,0.00013698,2]
[408621537,1773982234431,-500.0,0.00013698,2]
[408621538,1773982234441,-500.0,0.00013698,2]
[408621539,1773982234451,-500.0,0.00013698,2]
[408621540,1773982234460,-621.94276707,0.00013698,2]
[408621541,1773982234470,-500.0,0.00013698,2]
[408621542,1773982234479,-500.0,0.00013698,2]
[408621543,1773982234489,-500.0,0.00013698,2]
[408621544,1773982234498,-190.69986548,0.00013698,2]
[408621545,1773982234508,-868.03,0.00013698,2]
[408621546,1773982234518,-868.03,0.00013698,2]
[408621547,1773982234528,-868.03,0.00013698,2]
[408621548,1773982234538,-155.481,0.00013698,2]
[408621549,1773982234547,-416.73502406,0.00013698,2]
[408621550,1773982234557,-500.0,0.00013698,2]
[408621551,1773982234567,-500.0,0.00013698,2]
[408621552,1773982234576,-602.2480276,0.00013698,2]
[408621553,1773982234586,-1013.0,0.00013698,5]
[408621554,1773982234596,-200.0,0.00013699,2]
[408621555,1773982234605,-168.88,0.00013699,2]
[408621556,1773982234618,-439.7,0.00013699,2]
[408621557,1773982234628,-151.0,0.00013699,2]
[408621558,1773982234638,-151.0,0.00013699,2]
[408621559,1773982234648,-151.0,0.00013699,2]
[408621560,1773982234657,-151.0,0.00013699,2]
[408621561,1773982234667,-218.949244,0.00013699,2]
[408621562,1773982234677,-258.564754,0.00013699,2]
[408621563,1773982234686,-156.611181,0.00013699,2]
[408621564,1773982234697,-299.9999,0.00013699,2]
[408621565,1773982234706,-299.9999,0.00013699,2]
[408621566,1773982234716,-299.9999,0.00013699,2]
[408621567,1773982234727,-299.9999,0.00013699,2]
[408621568,1773982234737,-299.9999,0.00013699,2]
[408621569,1773982234747,-299.9999,0.00013699,2]
[408621570,1773982234756,-299.9999,0.00013699,2]
[408621571,1773982234766,-299.9999,0.00013699,2]
[408621572,1773982234775,-299.9999,0.00013699,2]
[408621573,1773982234785,-299.9999,0.00013699,2]
[408621574,1773982234796,-299.9999,0.00013699,2]
[408621575,1773982234805,-299.9999,0.00013699,2]
[408621576,1773982234815,-299.9999,0.00013699,2]
[408621577,1773982234825,-299.9999,0.00013699,2]
[408621578,1773982234834,-299.9999,0.00013699,2]
[408621579,1773982234844,-299.9999,0.00013699,2]
[408621580,1773982234853,-152.37265315,0.00013699,2]
[408621581,1773982234863,-151.0,0.00013699,2]
[408621582,1773982234872,-533.207555,0.00013699,2]
[408621583,1773982234883,-250.229789,0.00013699,2]
[408621584,1773982234893,-533.207555,0.00013699,2]
[408621585,1773982234903,-533.207555,0.00013699,2]
[408621586,1773982234913,-533.207555,0.00013699,2]
[408621587,1773982235139,-533.207555,0.00013699,2]
[408621588,1773982235158,-533.207555,0.00013699,2]
[408621589,1773982235169,-533.207555,0.00013699,2]
[408621590,1773982235179,-533.207555,0.00013699,2]
[408621591,1773982235188,-533.207555,0.00013699,2]
[408621592,1773982235200,-533.207555,0.00013699,2]
[408621593,1773982235210,-533.207555,0.00013699,2]
[408621594,1773982235221,-533.207555,0.00013699,2]
[408621595,1773982235232,-533.207555,0.00013699,2]
[408621596,1773982235241,-533.207555,0.00013699,2]
[408621597,1773982235251,-533.207555,0.00013699,2]
[408621598,1773982235260,-260.358497,0.00013699,2]
[408621599,1773982235270,-213.987921,0.00013699,2]
[408621600,1773982235280,-151.0,0.00013699,2]
[408621601,1773982235290,-151.0,0.00013699,2]
[408621602,1773982235300,-151.0,0.00013699,2]
[408621603,1773982235309,-151.0,0.00013699,2]
[408621604,1773982235320,-209.426032,0.00013699,2]
[408621605,1773982235330,-869.729177,0.00013699,2]
[408621606,1773982235339,-869.729177,0.00013699,2]
[408621607,1773982235349,-869.729177,0.00013699,2]
[408621608,1773982235358,-869.729177,0.00013699,2]
[408621609,1773982235367,-869.729177,0.00013699,2]
[408621610,1773982235376,-869.729177,0.00013699,2]
[408621611,1773982235386,-869.729177,0.00013699,2]
[408621612,1773982235395,-869.729177,0.00013699,2]
[408621613,1773982235404,-869.729177,0.00013699,2]
[408621614,1773982235413,-869.729177,0.00013699,2]
[408621615,1773982235423,-869.729177,0.00013699,2]
[408621616,1773982235432,-869.729177,0.00013699,2]
[408621617,1773982235442,-249.336676,0.00013699,2]
[408621618,1773982235451,-869.729177,0.00013699,2]
[408621619,1773982235460,-869.729177,0.00013699,2]
[408621620,1773982235470,-869.729177,0.00013699,2]
[408621621,1773982235480,-869.729177,0.00013699,2]
[408621622,1773982235490,-869.729177,0.00013699,2]
[408621623,1773982235499,-869.729177,0.00013699,2]
[408621624,1773982235509,-869.729177,0.00013699,2]
[408621625,1773982235518,-869.729169,0.00013699,2]
[408621626,1773982235529,-313.370478,0.00013699,2]
[408621627,1773982235538,-313.370478,0.00013699,2]
[408621628,1773982235547,-313.370478,0.00013699,2]
[408621629,1773982235558,-313.370478,0.00013699,2]
[408621630,1773982235568,-313.370478,0.00013699,2]
[408621631,1773982235577,-313.370478,0.00013699,2]
[408621632,1773982235587,-313.370478,0.00013699,2]
[408621633,1773982235596,-313.370478,0.00013699,2]
[408621634,1773982235606,-313.370478,0.00013699,2]
[408621635,1773982235616,-313.370478,0.00013699,2]
[408621636,1773982235625,-313.370478,0.00013699,2]
[408621637,1773982235634,-313.370478,0.00013699,2]
[408621638,1773982235644,-313.370478,0.00013699,2]
[408621639,1773982235653,-313.370478,0.00013699,2]
[408621640,1773982235663,-313.370478,0.00013699,2]
[408621641,1773982235672,-313.370478,0.00013699,2]
[408621642,1773982235682,-313.370478,0.00013699,2]
[408621643,1773982235691,-313.370478,0.00013699,2]
[408621644,1773982235700,-313.370478,0.00013699,2]
[408621645,1773982235711,-313.370479,0.00013699,2]
[408621646,1773982235720,-244.070771,0.00013699,2]
[408621647,1773982235730,-204.308612,0.00013699,2]
[408621648,1773982235739,-158.87628,0.00013699,2]
[408621649,1773982235748,-156.163624,0.00013699,2]
[408621650,1773982235758,-151.0,0.00013699,2]
[408621651,1773982235767,-151.0,0.00013699,2]
[408621652,1773982235776,-151.0,0.00013699,2]
[408621653,1773982235786,-151.0,0.00013699,2]
[408621654,1773982235795,-151.0,0.00013699,2]
[408621655,1773982235804,-296.402187,0.00013699,2]
[408621656,1773982235814,-161.134767,0.00013699,2]
[408621657,1773982235823,-151.0,0.00013699,2]
[408621658,1773982235833,-151.0,0.00013699,2]
[408621659,1773982235842,-151.0,0.00013699,2]
[408621660,1773982235851,-151.0,0.00013699,2]
[408621661,1773982235860,-151.0,0.00013699,2]
[408621662,1773982235869,-151.0,0.00013699,2]
[408621663,1773982235878,-286.869643,0.00013699,2]
[408621664,1773982235887,-151.0,0.00013699,2]
[408621665,1773982235897,-152.585442,0.00013699,2]
[408621666,1773982235907,-151.000006,0.00013699,2]
[408621667,1773982235927,-151.0,0.00013699,2]
[408621668,1773982235940,-159.381633,0.00013699,2]
[408621669,1773982235949,-151.0,0.00013699,2]
[408621670,1773982235959,-151.0,0.00013699,2]
[408621671,1773982235968,-151.0,0.00013699,2]
[408621672,1773982235977,-151.0,0.00013699,2]
[408621673,1773982235986,-151.0,0.00013699,2]
[408621674,1773982235995,-151.0,0.00013699,2]
[408621675,1773982236005,-188.576413,0.00013699,2]
[408621676,1773982236014,-151.0,0.00013699,2]
[408621677,1773982236024,-151.0,0.00013699,2]
[408621678,1773982236033,-151.0,0.00013699,2]
[408621679,1773982236042,-151.0,0.00013699,2]
[408621680,1773982236052,-151.0,0.00013699,2]
[408621681,1773982236076,-151.0,0.00013699,2]
[408621682,1773982236087,-245.468541,0.00013699,2]
[408621683,1773982236098,-151.0,0.00013699,2]
[408621684,1773982236108,-151.0,0.00013699,2]
[408621685,1773982236118,-158.936121,0.00013699,2]
[408621686,1773982236135,-151.0,0.00013699,2]
[408621687,1773982236147,-151.0,0.00013699,2]
[408621688,1773982236159,-151.0,0.00013699,2]
[408621689,1773982236168,-151.0,0.00013699,2]
[408621690,1773982236179,-151.0,0.00013699,2]
[408621691,1773982236191,-151.0,0.00013699,2]
[408621692,1773982236201,-162.329119,0.00013699,2]
[408621693,1773982236211,-151.0,0.00013699,2]
[408621694,1773982236223,-151.0,0.00013699,2]
[408621695,1773982236233,-151.0,0.00013699,2]
[408621696,1773982236243,-151.0,0.00013699,2]
[408621697,1773982236257,-151.0,0.00013699,2]
[408621698,1773982236268,-151.0,0.00013699,2]
[408621699,1773982236279,-151.0,0.00013699,2]
[408621700,1773982236289,-151.0,0.00013699,2]
[408621701,1773982236300,-153.600899,0.00013699,2]
[408621702,1773982236309,-202.382467,0.00013699,2]
[408621703,1773982236319,-151.0,0.00013699,2]
[408621704,1773982236329,-152.911997,0.00013699,2]
[408621705,1773982236340,-181.24851,0.00013699,2]
[408621706,1773982236351,-181.24851,0.00013699,2]
[408621707,1773982236361,-181.24851,0.00013699,2]
[408621708,1773982236372,-181.24851,0.00013699,2]
[408621709,1773982236382,-181.24851,0.00013699,2]
[408621710,1773982236392,-181.24851,0.00013699,2]
[408621711,1773982236402,-181.24851,0.00013699,2]
[408621712,1773982236412,-181.24851,0.00013699,2]
[408621713,1773982236422,-181.24851,0.00013699,2]
[408621714,1773982236438,-181.24851,0.00013699,2]
[408621715,1773982236449,-181.24851,0.00013699,2]
[408621716,1773982236460,-181.24851,0.00013699,2]
[408621717,1773982236471,-181.24851,0.00013699,2]
[408621718,1773982236481,-181.24851,0.00013699,2]
[408621719,1773982236491,-181.24851,0.00013699,2]
[408621720,1773982236503,-181.24851,0.00013699,2]
[408621721,1773982236513,-181.24851,0.00013699,2]
[408621722,1773982236523,-165.843204,0.00013699,2]
[408621723,1773982236534,-181.24851,0.00013699,2]
[408621724,1773982236544,-181.24851,0.00013699,2]
[408621725,1773982236554,-151.0,0.00013699,2]
[408621726,1773982236564,-181.248511,0.00013699,2]
[408621727,1773982236574,-151.0,0.00013699,2]
[408621728,1773982236584,-151.0,0.00013699,2]
[408621729,1773982236594,-223.750845,0.00013699,2]
[408621730,1773982236603,-151.0,0.00013699,2]
[408621731,1773982236613,-151.0,0.00013699,2]
[408621732,1773982236623,-151.0,0.00013699,2]
[408621733,1773982236633,-178.132751,0.00013699,2]
[408621734,1773982236643,-500.0,0.00013699,2]
[408621735,1773982236653,-209.15946236,0.00013699,2]
[408621736,1773982236663,-343.11599464,0.00013699,2]
[408621737,1773982236674,-500.0,0.00013699,2]
[408621738,1773982236684,-505.99225948,0.00013699,2]
[408621739,1773982236695,-672.18728748,0.00013699,2]
[408621740,1773982236705,-868.03,0.00013699,2]
[408621741,1773982236716,-151.0,0.00013699,2]
[408621742,1773982236726,-160.485407,0.00013699,2]
[408621743,1773982236737,-151.0,0.00013699,2]
[408621744,1773982236749,-299.9999,0.00013699,2]
[408621745,1773982236760,-299.9999,0.00013699,2]
[408621746,1773982236770,-299.9999,0.00013699,2]
[408621747,1773982236785,-299.999895,0.00013699,2]
[408621748,1773982236795,-151.0,0.00013699,2]
[408621749,1773982236806,-151.0,0.00013699,2]
[408621750,1773982236816,-151.0,0.00013699,2]
[408621751,1773982236825,-151.0,0.00013699,2]
[408621752,1773982236836,-533.207555,0.00013699,2]
[408621753,1773982236846,-533.207555,0.00013699,2]
[408621754,1773982236856,-533.207555,0.00013699,2]
[408621755,1773982236866,-533.207549,0.00013699,2]
[408621756,1773982236876,-35379.60296169,0.000137,2]
[408621757,1773982238244,-500.0,0.00011962,2]
[408621758,1773982238254,-500.0,0.00011962,2]
[408621759,1773982238264,-500.0,0.00011962,2]
[408621760,1773982238274,-151.0,0.0001248,2]
[408621762,1773982238284,-420.415458,0.00013034,2]
[408621764,1773982238294,-236.8946,0.000135,2]
[408621765,1773982238304,-151.0,0.00013699,2]
[408621766,1773982238313,-151.0,0.00013699,2]
[408621767,1773982238323,-151.0,0.00013699,2]
[408621768,1773982238333,-151.0,0.00013699,2]
[408621769,1773982238343,-151.0,0.00013699,2]
[408621770,1773982238352,-151.0,0.00013699,2]
[408621771,1773982238362,-151.0,0.00013699,2]
[408621772,1773982238372,-151.0,0.00013699,2]
[408621773,1773982238381,-151.0,0.00013699,2]
[408621774,1773982238409,-151.0,0.00013699,2]
[408621775,1773982238419,-19781.9816697,0.000137,2]
[408621776,1773982238433,-358.54894759,0.000137,2]
[408621777,1773982238468,-500.0,0.00013332,2]
[408621778,1773982238478,-49.78021488,0.00013332,2]
[408621779,1773982238516,-450.21978512,0.00013332,2]
[408621780,1773982238527,-151.0,0.00013699,2]
[408621781,1773982238538,-1825.26786318,0.000137,2]
[408621782,1773982238573,-3729.67853295,0.000137,2]
[408621783,1773982238585,-2072.78089634,0.000137,2]
[408621784,1773982238598,-891.00795405,0.000137,2]
[408621785,1773982238610,-1524.17106827,0.000137,2]
[408621794,1773982240641,-306.10710901,0.00013426,2]
[408621795,1773982240697,-420.86114321,0.00013426,2]
[408621796,1773982240711,-396.81615513,0.00013426,2]
[408621797,1773982240721,-1243.00208933,0.00013578,2]
[408621798,1773982240734,-1221.99791067,0.00013578,2]
[408621799,1773982240744,-151.0,0.00013699,2]
[408621800,1773982240754,-151.0,0.00013699,2]
[408621801,1773982240764,-151.0,0.00013699,2]
[408621802,1773982240774,-231.207555,0.00013699,2]
[408621803,1773982240784,-4155.36973084,0.000137,2]
[408621804,1773982240797,-6345.22456133,0.000137,2]
[408621805,1773982240810,-922.18333418,0.000137,2]
[408621806,1773982240826,-3230.74116892,0.000137,2]
[408621807,1773982240838,-425.63,0.000137,2]
[408621808,1773982240850,-500.0,0.000137,2]
[408621809,1773982240971,-101917.25131096,0.000137,2]
[408621810,1773982240981,-18947.83,0.000137,2]
[408621811,1773982240991,-18947.83,0.000137,2]
[408621812,1773982241002,-1299.0,0.00013711,2]
[408621813,1773982241012,-385.0,0.00013735,2]
[408621814,1773982241023,-385.0,0.0001376,2]
[408621815,1773982241032,-500.0,0.00013784,2]
[408621816,1773982241042,-513.59237161,0.00013784,2]
[408621817,1773982241052,-152.0,0.00013787,4]
[408621821,1773982241317,-1299.0,0.00013806,2]
[408621822,1773982241328,-166.67,0.00013809,2]
[408621823,1773982241338,-555.0,0.00013859,2]
[408621824,1773982241347,-800.0,0.000139,5]
[408621825,1773982241358,-385.0,0.00013927,2]
[408621826,1773982241368,-524.60612025,0.00013967,2]
[408621827,1773982241378,-166.66,0.00013976,2]
[408621828,1773982241389,-2706.63434673,0.00013981,2]
[408621829,1773982241399,-272.71745498,0.0001399,2]
[408621830,1773982241409,-263.48738981,0.00014,30]
[408621831,1773982241419,-385.0,0.00014002,2]
[408621832,1773982241434,-385.0,0.00014013,2]
[408621833,1773982241445,-2849.2676149,0.00014082,2]
[408621834,1773982241454,-5578.4682605,0.00014082,2]
[408621835,1773982241464,-20440.1469663,0.00014082,2]
[408621836,1773982241473,-721.1233451,0.00014089,2]
[408621837,1773982241483,-439.94635896,0.00014147,2]
[408621838,1773982241492,-501.56810013,0.00014247,2]
[408621839,1773982241501,-1000.0,0.00014247,2]
[408621840,1773982241511,-152.0,0.00014286,5]
[408621841,1773982241521,-288.89,0.00014335,2]
[408621842,1773982241530,-439.7,0.00014384,2]
[408621843,1773982241539,-635.7575392,0.0001444,2]
[408621844,1773982241548,-1244.7245163,0.0001444,2]
[408621845,1773982241559,-178.2101856,0.0001444,2]
[408621846,1773982241573,-4560.813266,0.0001444,2]
[408621847,1773982241588,-160.9043674,0.00014448,2]
[408621848,1773982241602,-500.0,0.00014476,2]
[408621849,1773982241612,-166.67,0.00014494,2]
[408621850,1773982241622,-1500.000001,0.000145,2]
[408621851,1773982241631,-168.05,0.0001457,2]
[408621852,1773982241641,-168.05,0.0001457,2]
[408621853,1773982241651,-2000.0,0.00014596,2]
[408621854,1773982241661,-500.0,0.00014702,2]
[408621855,1773982241671,-500.0,0.00014702,2]
[408621856,1773982241680,-500.0,0.00014702,2]
[408621857,1773982241690,-2706.63434673,0.00014765,2]
[408621858,1773982241700,-152.0,0.00014785,6]
[408621859,1773982241710,-503.02716514,0.00014795,2]
[408621860,1773982241720,-500.0,0.00014882,2]
[408621861,1773982241730,-500.0,0.00014882,2]
[408621862,1773982241740,-502.0,0.00014888,3]
[408621863,1773982241750,-438.90365876,0.00014893,2]
[408621864,1773982241760,-868.03,0.00014899,2]
[408621865,1773982241770,-7456.18626955,0.000149,2]
[408621887,1773982243883,-151.0,0.00014765,2]
[408621889,1773982243892,-205.65993177,0.00014765,2]
[408621892,1773982243901,-105.02207791,0.000149,2]
[408621895,1773982243912,-453.0326605,0.000149,2]
[408621899,1773982243924,-1329.59856054,0.000149,2]
[408621901,1773982243936,-7572.13946771,0.000149,2]
[408621903,1773982243951,-11908.6039419,0.000149,2]
[408621905,1773982243962,-3047.58091749,0.000149,2]
[408621910,1773982243996,-1064.41897122,0.000149,2]
[408621917,1773982246162,-41020.11931655,0.000149,2]
[408621918,1773982246172,-1200.0,0.000149,5]
[408621919,1773982246182,-151.0,0.000149,2]
[408621920,1773982246191,-438.9,0.00014915,2]
[408621921,1773982246203,-438.88,0.00014916,2]
[408621922,1773982246213,-168.11,0.00014938,2]
[408621923,1773982246222,-438.88,0.00014982,2]
[408621924,1773982246233,-500.0,0.00014992,2]
[408621925,1773982246243,-500.0,0.00014992,2]
[408621926,1773982246254,-500.0,0.00014992,2]
[408621927,1773982246263,-500.0,0.00014992,2]
[408621928,1773982246272,-500.0,0.00014992,2]
[408621929,1773982246282,-293.00887076,0.00014992,2]
[408621930,1773982246589,-206.99112924,0.00014992,2]
[408621931,1773982246599,-229.43954849,0.00015,2]
[408621932,1773982246609,-244.69704574,0.00015,2]
[408621933,1773982246624,-3857.7123853,0.00015,2]
[408621934,1773982246641,-218.63972707,0.00014915,2]
[408621935,1773982246650,-6997.59056896,0.00015,2]
[408621936,1773982246659,-355.0,0.00015,2]
[408621937,1773982246669,-587.0,0.00015,2]
[408621938,1773982246679,-150.0,0.00015,2]
[408621939,1773982246689,-1713.40446563,0.00015,30]
[408621940,1773982246698,-1628.03864996,0.00015,30]
[408621941,1773982246708,-534.27818196,0.00015,30]
[408621942,1773982246718,-250.0,0.00015,2]
[408621943,1773982246728,-196.69,0.00015003,2]
[408621944,1773982246738,-155.0,0.00015068,2]
[408621945,1773982246749,-439.7,0.00015068,2]
[408621946,1773982246758,-500.0,0.00015192,2]
[408621947,1773982246767,-500.0,0.00015192,2]
[408621948,1773982246777,-500.0,0.00015192,2]
[408621949,1773982246786,-500.0,0.00015192,2]
[408621950,1773982246796,-150.0,0.00015193,2]
[408621951,1773982246805,-150.0,0.00015193,2]
[408621953,1773982246815,-183059.44,0.000152,2]
[408621955,1773982246825,-719.63,0.000152,2]
[408621957,1773982246834,-334.55,0.000152,2]
[408621958,1773982246844,-475.46,0.000152,2]
[408621959,1773982246854,-500.0,0.00015232,2]
[408621960,1773982246863,-500.0,0.00015232,2]
[408621961,1773982246872,-500.0,0.00015232,2]
[408621962,1773982246883,-152.0,0.00015284,7]